{"text_format":"1","workbook":"xlsx","n_sheets":2,"sheets":["№3","Лист1"],"not_rendered":{"charts":0,"images":0,"macros":0,"external_links":0,"defined_names":2,"comments":0,"pivot_tables":0},"unopened":[],"bounds":{"document_bytes":16777216,"sheet_cells":100000,"rows_first":2000,"rows_last":500,"rows_between":2000,"halvings":0,"cell_chars":16384,"cell_head_chars":4096},"cells_cut":0,"cells_raw":0,"read":"whole","date_system":"1900"}

{"sheet":"№3","index":0,"n_rows":215,"n_cols":9,"rows_kept":215,"cut":false,"hidden":false,"merged":[[3,2,3,6],[5,3,5,6],[216,4,216,6],[11,0,11,6],[12,0,12,6],[9,0,9,6],[10,0,10,6]]}
[]
[null,null,null,null,null,null,"   Приложение №3  "]
[null,"к решению Совета депутатов Борковского сельского поселения",null,"к решению Совета депутатов Борковского сельского "]
[null,"депутатов Борковского сельского поселения от  ___12.2015  №__","      поселения \" О бюджете  Борковского сельского поселения на 2016 год\""]
[null,"\"О бюджете Борковского сельского поселения на 2016 год\"  "]
[null,null,null,"от 24.12.2015 №18"]
[]
[]
[]
["Распределение бюджетных ассигнований на  2016 год                                                            "]
["по разделам и подразделам, целевым статьям и видам расходов                                                                          "]
["классификации расходов бюджета                                                                                                                   "]
[]
["Наименование",null,"Рз","ПР","ЦСР","ВР","Сумма","2009 год","2010 год"]
["Администрация Борковского сельского поселения"]
["Общегосударственные вопросы",null,"01",null,null,null,{"$f":"G19+G31+G64+G73+G57+G76","v":4093.7500000000005},{"$f":"H19+#REF!+#REF!+H31+#REF!++#REF!+#REF!+#REF!+#REF!","v":{"$error":"#REF!"}},{"$f":"I19+#REF!+#REF!+I31+#REF!++#REF!+#REF!+#REF!+#REF!","v":{"$error":"#REF!"}}]
["Функционирование высшего должностного лица "]
["субъекта Российской Федерации и  "]
["муниципального образования",null,{"$f":"C$16","v":"01"},"02",null,null,{"$f":"G20","v":621.90000000000009},{"$f":"#REF!","v":{"$error":"#REF!"}},{"$f":"#REF!","v":{"$error":"#REF!"}}]
["Глава муниципального образования",null,{"$f":"C$16","v":"01"},{"$f":"D$19","v":"02"},"20 1 00 00000",null,{"$f":"G22","v":621.90000000000009},{"$f":"#REF!","v":{"$error":"#REF!"}},{"$f":"#REF!","v":{"$error":"#REF!"}}]
["Расходы на обеспечение функций органов "]
["местного самоуправления",null,"01","02","20 1 00 01000",null,{"$f":"G23+G27+G26","v":621.90000000000009}]
["Фонд оплаты труда государственных (муниципальных) органов",null,{"$f":"C$16","v":"01"},{"$f":"D$19","v":"02"},"20 1 00 01000","121",451]
["Взносы по обязательном у социальному страхованию на выплаты"]
["денежного содержания и иные выплаты работникам"]
["государственных (муниципальных) органов",null,"01","02","20 1 00 01000","129",130.80000000000001]
["Иные выплаты персоналу, за исключением фонда оплаты труда",null,{"$f":"C$16","v":"01"},{"$f":"D$19","v":"02"},"20 1 00 01000","122",40.1]
["Функционирование Правительства Российской "]
["Федерации, высших исполнительных органов"]
["государственной власти субъектов Российской  "]
["Федерации, местных администраций",null,{"$f":"C$16","v":"01"},"04",null,null,{"$f":"G35","v":3098.1000000000004},{"$f":"H35","v":{"$error":"#REF!"}},{"$f":"I35","v":{"$error":"#REF!"}}]
["Руководство и управление в сфере установленных "]
["функций органов государственной власти субъектов"]
["Российской Федерации и органов местного"]
["самоуправления",null,{"$f":"C$16","v":"01"},{"$f":"D31","v":"04"},"20 2 00 01000",null,{"$f":"G37","v":3098.1000000000004},{"$f":"#REF!+H37","v":{"$error":"#REF!"}},{"$f":"#REF!+I37","v":{"$error":"#REF!"}}]
["Расходы на обеспечение функций органов "]
["местного самоуправления",null,"01",{"$f":"D31","v":"04"},"20 2 00 01000",null,{"$f":"G46+G44+G42+G38+G41+G50+G51+G52","v":3098.1000000000004},{"$f":"H46","v":109153},{"$f":"I46","v":111534}]
["Фонд оплаты труда государственных (муниципальных) органов",null,"01","04","20 2 00 01000","121",1787.8]
["Взносы по обязательном у социальному страхованию на выплаты"]
["денежного содержания и иные выплаты работникам"]
["государственных (муниципальных) органов",null,"01","04","20 2 00 01000","129",520.79999999999995]
["Иные выплаты персоналу, за исключением фонда оплаты труда",null,"01","04","20 2 00 01000","122",160.4]
["Закупка товаров, работ, услуг в области "]
["информационных технологий ",null,"01","04","20 2 00 01000","242",195]
["Прочая закупка товаров,работ и услуг для муниципальных",null,null,{"$f":"D34","v":0}]
["нужд",null,"01",{"$f":"D31","v":"04"},"20 2 00 01000","244",385,{"$f":"41535+18149+427+17648+30000+534+860","v":109153},{"$f":"42995+18483+456+19031+30000+569","v":111534}]
["Областной резервный фонд на ликвидацию угрозы и"]
["последствий чрезвычайных ситуаций",null,{"$f":"C$16","v":"01"},{"$f":"#REF!","v":{"$error":"#REF!"}},{"$f":"#REF!","v":{"$error":"#REF!"}},null,{"$f":"G49","v":0},{"$f":"H49","v":0},{"$f":"I49","v":0}]
["Прочие расходы",null,{"$f":"C$16","v":"01"},{"$f":"#REF!","v":{"$error":"#REF!"}},{"$f":"#REF!","v":{"$error":"#REF!"}},"013",{"$f":"3317-3317","v":0},{"$f":"3543-3543","v":0},{"$f":"3773-3773","v":0}]
["Уплата налога на имущество организаций",null,{"$f":"C$16","v":"01"},"04","20 2 00 01000","851",1.5]
["Уплата прочих налогов, сборов и иных обязательных платежей",null,"01","04","20 2 00 01000","852",1.8]
["Уплата иных платежей",null,"01","04","20 2 00 01000","853",45.8]
["Субвенция на возмещению затрат по содержанию штатных "]
["единиц, осуществляющих переданные отдельные государствен- "]
["ные полномочия области по организации деятельности по сбору "]
["( в том числе раздельному сбору) и транспортированию твердых"]
["коммунальных отходов городских и сельских поселений",null,"01","04","20 2 00 70280",null,{"$f":"+G58+G61+G63","v":151.69999999999999}]
["Фонд оплаты труда государственных (муниципальных) органов",null,"01","04","20 2 00 70280","121",111.6]
["Взносы по обязательном у социальному страхованию на выплаты"]
["денежного содержания и иные выплаты работникам"]
["государственных (муниципальных) органов",null,"01","04","20 2 00 70280","129",32.6]
["Прочая закупка товаров,работ и услуг для муниципальных"]
["нужд",null,"01","04","20 2 00 70280","244",7.5]
["Обеспечение деятельности финансовых, налоговых ",null,"01","06",null,null,{"$f":"G71","v":217.05}]
["и таможенных органов и органов финансового (финансово-"]
["бюджетного) надзора "]
["Иные межбюджетные трансферты из бюджетов поселений"]
["бюджету муниципального района на возмещение затрат по "]
["содержанию штатных единиц, осуществляющих переданные ",null,null,"                    "]
["полномочия поселения по внешнему муниципальному"]
["финансовому контролю",null,"01","06","20 4 00 93020",null,{"$f":"+G72","v":217.05}]
["Иные межбюджетные трансферты ",null,"01","06","20 4 00 93020","540",217.05]
["Резервные фонды",null,"01","11",null,null,{"$f":"G74","v":1}]
["Резервные фонды местных администраций",null,"01","11","20 5 00 25030",null,{"$f":"G75","v":1}]
["Резервные  средства",null,"01","11","20 5 00 25030","870",1]
["Другие общегосударственные вопросы",null,"01","13",null,null,4]
["Содержание и обслуживание казны муниципального "]
["образования",null,"01","13","20 5 00 25150",null,4]
["Прочая закупка товаров,работ и услуг для муниципальных"]
["нужд",null,"01","13","20 5 00 25150","244",4]
["Национальная оборона",null,"02",null,null,null,{"$f":"G82","v":178}]
["Мобилизационная и вневойсковая подготовка",null,"02","03",null,null,{"$f":"+G84","v":178}]
["Осуществление первичного воинского учета на"]
["территории, где отсутствуют воинские комиссариаты",null,"02","03","20 5 00 51180",null,{"$f":"G85+G90+G88","v":178}]
["Фонд оплаты труда государственных (муниципальных) органов",null,"02","03","20 5 00 51180","121",129.69999999999999]
["Взносы по обязательном у социальному страхованию на выплаты"]
["денежного содержания и иные выплаты работникам"]
["государственных (муниципальных) органов",null,"02","03","20 5 00 51180","129",39.200000000000003]
["Прочая закупка товаров,работ и услуг для муниципальных"]
["нужд",null,"02","03","20 5 00 51180","244",9.1]
["Национальная безопасность и "]
["правоохранительная деятельность",null,"03",null,null,null,{"$f":"G93","v":69},{"$f":"#REF!+#REF!+H93+#REF!","v":{"$error":"#REF!"}},{"$f":"#REF!+#REF!+I93+#REF!","v":{"$error":"#REF!"}}]
["Обеспечение пожарной безопасности",null,{"$f":"C$92","v":"03"},"10",null,null,{"$f":"+G96","v":69},{"$f":"#REF!+#REF!+#REF!","v":{"$error":"#REF!"}},{"$f":"#REF!+#REF!+#REF!","v":{"$error":"#REF!"}}]
["Пожарная безопасность в рамках муниципальной  "]
["программы \"Устойчивое развитие территории Борковского",null,null,null,null,null,null,{"$f":"H98","v":238496},{"$f":"I98","v":254189}]
["сельского поселения на 2014-2016гг.\"",null,{"$f":"C$92","v":"03"},{"$f":"D93","v":"10"},"01 0 00 25110",null,{"$f":"G98","v":69}]
["Прочая закупка товаров,работ и услуг для "]
["муниципальных нужд",null,{"$f":"C$92","v":"03"},{"$f":"D93","v":"10"},"01 0 00 25110","244",69,{"$f":"24567+213947-18","v":238496},{"$f":"27116+227094-21","v":254189}]
["Субсидирование процентных ставок по "]
["привлеченным кредитам в российских кредитных"]
["организациях на развитие животноводства",null,{"$f":"#REF!","v":{"$error":"#REF!"}},{"$f":"#REF!","v":{"$error":"#REF!"}},{"$f":"#REF!","v":{"$error":"#REF!"}},"356"]
["Субсидирование процентных ставок по "]
["привлеченным кредитам в российских кредитных"]
["организациях на развитие малых форм "]
["хозяйствования в агропромышленном комплексе",null,{"$f":"#REF!","v":{"$error":"#REF!"}},{"$f":"#REF!","v":{"$error":"#REF!"}},{"$f":"#REF!","v":{"$error":"#REF!"}},"357"]
["Субсидирование части затрат на приобретение"]
["дизельного топлива, использованного на "]
["проведение сезонных сельскохозяйственных работ",null,{"$f":"#REF!","v":{"$error":"#REF!"}},{"$f":"#REF!","v":{"$error":"#REF!"}},{"$f":"#REF!","v":{"$error":"#REF!"}},"355"]
["Субсидирование процентных ставок по кредитам, "]
["полученным в российских кредитных организациях "]
["на развитие животноводства и промышленного "]
["рыбоводства",null,{"$f":"#REF!","v":{"$error":"#REF!"}},{"$f":"#REF!","v":{"$error":"#REF!"}},{"$f":"#REF!","v":{"$error":"#REF!"}},"356"]
["Субсидирование процентных ставок по кредитам, "]
["полученным в российских кредитных организациях, "]
["и займам, полученным в сельскохозяйственных"]
["кредитных потребительских кооперативах, "]
["на развитие малых форм хозяйствования в"]
["агропромышленном комплексе",null,{"$f":"#REF!","v":{"$error":"#REF!"}},{"$f":"#REF!","v":{"$error":"#REF!"}},{"$f":"#REF!","v":{"$error":"#REF!"}},"357"]
["Субсидии на поддержку племенного "]
["животноводства",null,{"$f":"#REF!","v":{"$error":"#REF!"}},{"$f":"#REF!","v":{"$error":"#REF!"}},{"$f":"#REF!","v":{"$error":"#REF!"}},"627"]
["Возмещение части затрат на уплату процентов"]
["по кредитам, полученным на срок до пяти лет"]
["в российских кредитных организациях "]
["на приобретение племенного скота, племенного"]
["материала рыб, техники и оборудования"]
["для животноводческих комплексов и организаций,"]
["осуществляющих промышленное рыбоводство",null,{"$f":"#REF!","v":{"$error":"#REF!"}},{"$f":"#REF!","v":{"$error":"#REF!"}},{"$f":"#REF!","v":{"$error":"#REF!"}},"628"]
["Национальная экономика",null,"04",null,null,null,{"$f":"+G130","v":1981.6}]
[]
["Дорожное хозяйство(дорожные фонды)",null,"04","09",null,null,{"$f":"+G133","v":1981.6}]
["Дорожное хозяйство в рамках муниципальной  программы"]
["\"Устойчивое развитие территории Борковского сельского"]
["поселения на 2014-2016гг.\"",null,"04","09","01 0 00 00000",null,{"$f":"+G135+G139+G143","v":1981.6}]
["Капитальный ремонт и ремонт автомобильных дорог общего пользования "]
["пользования местного значения в границах населенных пунктов ",null,"04","09 ","01 0 00 S5170",null,{"$f":"G137","v":658.6}]
["Прочая закупка товаров,работ и услуг для "]
["муниципальных нужд",null,"04","09 ","01 0 00 S5170","244",658.6]
["Содержание автомобильных дорог общего пользования местного значения населеных пунктов"]
["значения в границах населенных пунктов",null,"04","09","01 0 00 25160",null,{"$f":"+G141","v":200}]
["Прочая закупка товаров,работ и услуг для "]
["муниципальных нужд",null,"04","09 ","01 0 00 25160","244",200]
["Осуществление дорожной деятельности в отношении "]
["автомобильных дорог общего пользования местного значения",null,"04","09","01 0 00 71520",null,{"$f":"G145","v":1123}]
["Прочая закупка товаров,работ и услуг для "]
["муниципальных нужд",null,"04","09 ","01 0 00 71520","244",1123]
["Жилищно-коммунальное хозяйство",null,"05",null,null,null,{"$f":"G147+G152","v":3015.5},{"$f":"#REF!+H152+#REF!","v":{"$error":"#REF!"}},{"$f":"#REF!+I152+#REF!","v":{"$error":"#REF!"}}]
["Коммунальное хозяйство",null,"05","02",null,null,{"$f":"+G150","v":300}]
[]
["Компенсация выпадающих доходов организациям,"]
["предоставляющим населению услуги общественных бань ",null,"05","02","01 0 00 62200",null,{"$f":"G151","v":300}]
["Субсидии юридическим лицам",null,"05","02","01 0 00 62200","810",300]
["Благоустройство",null,{"$f":"C$146","v":"05"},"03",null,null,{"$f":"+G154+G157+G160+G164","v":2715.5},{"$f":"#REF!+#REF!+#REF!+#REF!+H153","v":{"$error":"#REF!"}},{"$f":"#REF!+#REF!+#REF!+#REF!+I153","v":{"$error":"#REF!"}}]
["Организация уличного освещения с использованием ",null,null,null,null,null,null,{"$f":"#REF!","v":{"$error":"#REF!"}},{"$f":"#REF!","v":{"$error":"#REF!"}}]
["новых технологий",null,{"$f":"C$146","v":"05"},{"$f":"D152","v":"03"},"01 0 00 25190",null,{"$f":"G156","v":1989}]
["Прочая закупка товаров,работ и услуг для муниципальных"]
["нужд",null,{"$f":"C$146","v":"05"},{"$f":"D154","v":"03"},"01 0 00 25190","244",1989]
["Озеленение территории поселения",null,"05","03","01 0 00 25210",null,{"$f":"G159","v":140}]
["Прочая закупка товаров,работ и услуг для муниципальных"]
["нужд",null,"05","03","01 0 00 25210","244",140]
["Организация ритуальных услуг и содержание мест захоронения ",null,"05","03","01 0 00 25220",null,{"$f":"G162","v":150}]
["Прочая закупка товаров,работ и услуг для муниципальных"]
["муниципальных нужд",null,"05","03","01 0 00 25220","244",150]
["Прочие мероприятия по благоустройству"]
["городских округов и поселений",null,"05","03","01 0 00 25230",null,436.5]
["Прочая закупка товаров, работ и услуг для муниципальных"]
["нужд",null,"05","03","01 0 00 25230","244",436.5]
["Образование",null,"07",null,null,null,{"$f":"G168+G173","v":15.4},{"$f":"#REF!+#REF!+#REF!+#REF!+#REF!+H168","v":{"$error":"#REF!"}},{"$f":"#REF!+#REF!+#REF!+#REF!+#REF!+I168","v":{"$error":"#REF!"}}]
["Молодежная политика и оздоровление детей",null,{"$f":"C$167","v":"07"},"07",null,null,{"$f":"G169","v":4},{"$f":"H169+#REF!+#REF!","v":{"$error":"#REF!"}},{"$f":"I169+#REF!+#REF!","v":{"$error":"#REF!"}}]
["Организационно-воспитательная работа с молодежью",null,{"$f":"C$167","v":"07"},{"$f":"D$168","v":"07"},"20 5 00 00000",null,{"$f":"G170","v":4},{"$f":"H170","v":{"$error":"#REF!"}},{"$f":"I170","v":{"$error":"#REF!"}}]
["Реализация  мероприятий для детей и молодежи",null,{"$f":"C$167","v":"07"},{"$f":"D$168","v":"07"},"20 5 00 25090",null,{"$f":"G172","v":4},{"$f":"#REF!+H171","v":{"$error":"#REF!"}},{"$f":"#REF!+I171","v":{"$error":"#REF!"}}]
["Прочая закупка товаров,работ и услуг для муниципальных"]
["нужд",null,{"$f":"C$167","v":"07"},{"$f":"D$168","v":"07"},"20 5 00 25090","244",4]
["Другие вопросы в области образования",null,"07","09",null,null,{"$f":"G178+G185","v":11.4}]
["Мероприятия на организацию профессионального  "]
[" образования и дополнительного профессионального"]
["образования выборных должностных лиц,"]
["муниципальных служащих и служащих городских и "]
["сельских поселений",null,"07","09","20 5 00 S5370",null,2]
["Прочая закупка товаров,работ и услуг для муниципальных"]
["нужд",null,"07","09","20 5 00 S5370","244",2]
["Субсидии бюджетам муниципальных районов и городского   "]
["округа на организацию профессионального образования"]
["и дополнительного профессионального образования "]
["выборных должностных лиц, служащих и муниципальных "]
["служащих Новгородской области",null,"07","09","20 5 00 72280",null,9.4]
["Прочая закупка товаров,работ и услуг для муниципальных"]
["нужд",null,"07","09","20 5 00 72280","244",9.4]
[]
["Культура, кинематография, средства "]
["массовой информации",null,"08",null,null,null,{"$f":"G191","v":2336.4},{"$f":"#REF!+#REF!+#REF!+#REF!","v":{"$error":"#REF!"}},{"$f":"#REF!+#REF!+#REF!+#REF!","v":{"$error":"#REF!"}}]
["Культура ",null,{"$f":"C$190","v":"08"},"01",null,null,{"$f":"G197+G193","v":2336.4}]
["Дворцы и дома культуры",null,"08","01","20 5 00 14000",null,2334.4]
["Обеспечение деятельности  подведомственных учреждений",null,"08","01","20 5 00 14010",null,{"$f":"G196","v":2334.4}]
["Субсидии автономным учреждениям на финансовое "]
["обеспечение муниципального задания на оказание "]
["муниципальных услуг (выполнение работ)",null,"08","01","20 5 00 14010","621",2334.4]
["Мероприятия в области культуры",null,"08","01","20 5 00 25050",null,{"$f":"G199","v":2}]
["Прочая закупка товаров,работ и услуг для муниципальных",null,null,null,null,null,null,{"$f":"H199","v":14118},{"$f":"I199","v":14502}]
["нужд",null,{"$f":"C$190","v":"08"},{"$f":"D191","v":"01"},"20 5 00 25050","244",2,{"$f":"11260+2858","v":14118},{"$f":"11613+2889","v":14502}]
["Социальная политика",null,"10",null,null,null,{"$f":"G201","v":252.5}]
["Пенсионное обеспечение ",null,"10","01",null,null,{"$f":"+G202","v":252.5}]
["Публичные обязательства",null,"10","01","20 5 00 80000",null,{"$f":"G204","v":252.5}]
["Доплаты к пенсиям муниципальных служащих, служащих, "]
["замещавших муниципальные должности",null,"10","01","20 5 00 82100",null,252.5]
["Иные пенсии, социальные доплаты к пенсиям",null,"10","01","20 5 00 82100","312",252.5]
["Физическая культура и спорт ",null,"11",null,null,null,{"$f":"G207","v":18},{"$f":"#REF!+#REF!+#REF!+#REF!+#REF!+H207+#REF!","v":{"$error":"#REF!"}},{"$f":"#REF!+#REF!+#REF!+#REF!+#REF!+I207+#REF!","v":{"$error":"#REF!"}}]
["Физическая культура ",null,"11","01",null,null,{"$f":"+G211","v":18},{"$f":"H208+#REF!+#REF!","v":{"$error":"#REF!"}},{"$f":"I208+#REF!+#REF!","v":{"$error":"#REF!"}}]
["Непрограммные инвестиции в основные фонды",null,{"$f":"C$206","v":"11"},{"$f":"D207","v":"01"},"102 00 00",null,{"$f":"G210","v":0},{"$f":"H210","v":0},{"$f":"I210","v":0}]
["Строительство объектов общегражданского "]
["назначения",null,{"$f":"C$206","v":"11"},{"$f":"D207","v":"01"},{"$f":"E208","v":"102 00 00"},"214"]
["Мероприятия в области физической культуры и спорта",null,"11 ","01","2050025100",null,{"$f":"G213","v":18}]
["Прочая закупка товаров,работ и услуг для муниципальных",null,null,null,null,null,null,{"$f":"H213","v":0},{"$f":"I213","v":0}]
["нужд",null,"11",{"$f":"D207","v":"01"},"2050025100","244",18]
[]
["ВСЕГО РАСХОДОВ:",null,null,null,null,null,{"$f":"G206+G190+G167+G146+G128+G81+G16+G92+G200","v":11960.15},{"$f":"H16+H92+#REF!+#REF!+H146+H167+H190+H206+#REF!+#REF!+#REF!","v":{"$error":"#REF!"}},{"$f":"I16+I92+#REF!+#REF!+I146+I167+I190+I206+#REF!+#REF!+#REF!","v":{"$error":"#REF!"}}]

{"sheet":"Лист1","index":1,"n_rows":0,"n_cols":0,"rows_kept":0,"cut":false,"hidden":false,"merged":[]}